bitfinex/quotes_BTCUSD_20230405
["timestamp","ask_amount","ask_price","bid_price","bid_amount"]
[1680683613333,0.027,28571.0,28570.0,0.37369092]
[1680683613550,0.027,28571.0,28570.0,0.37381092]
[1680683614093,0.027,28571.0,28570.0,0.00012]
[1680683614094,0.60347297,28571.0,28570.0,0.00012]
[1680683614316,0.60347297,28571.0,28567.0,0.41777135]
[1680683614535,0.35471056,28570.0,28568.0,0.39306087]
[1680683614750,0.35471056,28570.0,28568.0,0.39324087]
[1680683616058,0.38171056,28570.0,28568.0,0.39324087]
[1680683617386,0.027,28570.0,28569.0,0.42519799]
[1680683617632,0.027,28570.0,28569.0,0.42531799]
[1680683618359,0.16264381,28573.0,28569.0,0.42531799]
[1680683618580,0.027,28570.0,28569.0,0.42531799]
[1680683618794,0.027,28570.0,28569.0,0.42537799]
[1680683619012,0.027,28570.0,28569.0,0.00018]
[1680683619243,0.027,28570.0,28569.0,0.37406746]
[1680683619472,0.027,28570.0,28569.0,0.37424746]
[1680683619674,0.027,28570.0,28569.0,0.00018]
[1680683619931,0.027,28570.0,28569.0,0.44691056]
[1680683620156,0.027,28570.0,28569.0,0.46912756]
[1680683620381,0.027,28570.0,28569.0,0.46918756]
[1680683620835,0.17480645,28576.0,28569.0,0.46918756]
[1680683621072,0.17480645,28576.0,28570.0,0.45671556]
[1680683621307,0.17480645,28576.0,28571.0,0.44620021]
[1680683621528,0.17480645,28576.0,28572.0,0.022261]
[1680683621753,0.17480645,28576.0,28572.0,0.03288]
[1680683621987,0.18280645,28576.0,28573.0,0.023012]
[1680683622216,0.17480645,28576.0,28573.0,0.023012]
[1680683622439,0.19580645,28576.0,28572.0,0.032446]
[1680683622668,0.17480645,28576.0,28573.0,0.020874]
[1680683623127,0.17480645,28576.0,28572.0,0.021445]
[1680683623822,0.20180645,28576.0,28573.0,0.35920045]
[1680683624071,0.17480645,28576.0,28575.0,0.021685]
[1680683624301,0.20180645,28576.0,28575.0,0.021685]
[1680683624514,0.20180645,28576.0,28573.0,0.35938045]
[1680683624982,0.17480645,28576.0,28573.0,0.35938045]
[1680683625197,0.20180645,28576.0,28573.0,0.35938045]
[1680683625414,0.17480645,28576.0,28573.0,0.35938045]
[1680683625634,0.20180645,28576.0,28573.0,0.35938045]
[1680683626114,0.027,28576.0,28573.0,0.36987945]
[1680683626362,0.027,28576.0,28574.0,0.39624067]
[1680683627448,0.027,28576.0,28575.0,0.021377]
[1680683627673,0.14003968,28578.0,28575.0,0.021377]
[1680683627898,0.027,28576.0,28574.0,0.39624067]
[1680683628141,0.15816466,28577.0,28574.0,0.39624067]
[1680683628378,0.027,28576.0,28574.0,0.39636067]
[1680683628603,0.15816466,28577.0,28575.0,0.021483]
[1680683628834,0.15816466,28577.0,28574.0,0.39636067]
[1680683629994,0.18516466,28577.0,28574.0,0.39636067]
[1680683631153,0.18516466,28577.0,28574.0,0.39636067]
[1680683631371,0.18516466,28577.0,28575.0,0.33781005]
[1680683632314,0.15816466,28577.0,28575.0,0.33781005]
[1680683632763,0.18516466,28577.0,28575.0,0.33781005]
[1680683633402,0.02721,28577.0,28575.0,0.33771171]
[1680683633686,0.027,28577.0,28575.0,0.33771171]
[1680683635886,0.1922258,28577.0,28575.0,0.33771171]
[1680683636110,0.1924358,28577.0,28575.0,0.33771171]
[1680683636781,0.02721,28577.0,28574.0,0.00018]
[1680683637002,0.18222461,28576.0,28570.0,0.67281258]
[1680683637268,0.14189681,28575.0,28570.0,0.67281258]
[1680683637534,0.14189681,28575.0,28571.0,0.43337024]
[1680683637747,0.14189681,28575.0,28571.0,0.43355024]
[1680683637979,0.18243461,28576.0,28572.0,0.36313492]
[1680683638200,0.18222461,28576.0,28572.0,0.36325492]
[1680683638413,0.18222461,28576.0,28572.0,0.36313492]
[1680683638625,0.19622461,28576.0,28572.0,0.36313492]
[1680683638847,0.18222461,28576.0,28572.0,0.36313492]
[1680683639075,0.20922461,28576.0,28572.0,0.36313492]
[1680683639290,0.20922461,28576.0,28572.0,0.00012]
[1680683639512,0.17908255,28575.0,28571.0,0.32966759]
[1680683639724,0.17908255,28575.0,28571.0,0.32984759]
[1680683641249,0.20008255,28575.0,28571.0,0.32984759]
[1680683641478,0.20008255,28575.0,28572.0,0.023097]
[1680683641920,0.13178161,28574.0,28571.0,0.32984759]
[1680683642382,0.13178161,28574.0,28573.0,0.021408]
[1680683642618,0.13178161,28574.0,28571.0,0.32984759]
[1680683642842,0.13178161,28574.0,28573.0,0.021453]
[1680683643269,0.15278161,28574.0,28571.0,0.32984759]
[1680683643491,0.15278161,28574.0,28573.0,0.020672]
[1680683644608,0.15278161,28574.0,28571.0,0.32984759]
[1680683644823,0.13178161,28574.0,28571.0,0.32984759]
[1680683645065,0.15878161,28574.0,28571.0,0.32984759]
[1680683645314,0.15878161,28574.0,28573.0,0.022665]
[1680683645756,0.13178161,28574.0,28573.0,0.022665]
[1680683645979,0.15278161,28574.0,28573.0,0.022665]
[1680683646197,0.13178161,28574.0,28573.0,0.022665]
[1680683646430,0.00021,28576.0,28573.0,0.022665]
[1680683646672,0.15377482,28575.0,28573.0,0.022665]
[1680683646901,0.15377482,28575.0,28574.0,0.021932]
[1680683648018,0.18077482,28575.0,28574.0,0.021932]
[1680683648262,0.18077482,28575.0,28572.0,0.00018]
[1680683648485,0.18077482,28575.0,28571.0,0.44335472]
[1680683648680,0.18077482,28575.0,28572.0,0.022598]
[1680683648944,0.18077482,28575.0,28572.0,0.34927756]
[1680683649161,0.18077482,28575.0,28574.0,0.023074]
[1680683649820,0.15377482,28575.0,28574.0,0.023074]
[1680683650035,0.18077482,28575.0,28574.0,0.023074]
[1680683650266,0.00021,28576.0,28574.0,0.023074]
[1680683650566,0.53545538,28575.0,28569.0,0.37607956]
[1680683650792,0.14189681,28574.0,28570.0,0.42682762]
[1680683651018,0.14189681,28574.0,28571.0,0.021773]
[1680683651241,0.50845538,28575.0,28571.0,0.021893]
[1680683651486,0.51645538,28575.0,28570.0,0.40615762]
[1680683651946,0.50845538,28575.0,28570.0,0.40615762]
[1680683652184,0.00021,28576.0,28574.0,0.32879877]
[1680683652448,0.15647768,28577.0,28575.0,0.020895]
[1680683652712,0.15720934,28576.0,28574.0,0.32879877]
[1680683654212,0.18420934,28576.0,28574.0,0.32879877]
[1680683654924,0.18420934,28576.0,28575.0,0.021229]
[1680683655148,0.18420934,28576.0,28574.0,0.32897877]
[1680683655149,0.17490356,28576.0,28574.0,0.32897877]
[1680683656098,0.17490356,28576.0,28574.0,0.00018]
[1680683656332,0.1,28575.0,28570.0,0.38055483]
[1680683656556,0.1,28575.0,28571.0,0.021828]
[1680683656557,0.14189681,28574.0,28571.0,0.021828]
[1680683656785,0.14189681,28574.0,28571.0,0.022008]
[1680683657002,0.1,28575.0,28571.0,0.022008]
[1680683657003,0.1,28575.0,28571.0,0.00018]
[1680683657459,0.1,28575.0,28571.0,0.00012]
[1680683657684,0.021,28574.0,28571.0,0.00012]
[1680683657939,0.19474641,28574.0,28571.0,0.00012]
[1680683658171,0.17374641,28574.0,28571.0,0.00018]
[1680683658618,0.17374641,28574.0,28571.0,0.36113946]
[1680683659514,0.20074641,28574.0,28571.0,0.36113946]
[1680683660176,0.17374641,28574.0,28571.0,0.36113946]
[1680683660391,0.20074641,28574.0,28573.0,0.021509]
[1680683660612,0.17374641,28574.0,28573.0,0.021509]
[1680683660807,0.20074641,28574.0,28572.0,0.00018]
[1680683661031,0.17374641,28574.0,28572.0,0.00012]
[1680683661248,0.20074641,28574.0,28572.0,0.00012]
[1680683662122,0.17374641,28574.0,28572.0,0.00012]
[1680683662345,0.17367416,28574.0,28572.0,0.00012]
[1680683662563,0.17367416,28574.0,28571.0,0.36113946]
[1680683662564,0.20067416,28574.0,28571.0,0.36113946]
[1680683662788,0.027,28574.0,28571.0,0.00018]
[1680683663038,0.027,28574.0,28572.0,0.43545089]
[1680683663360,0.027,28574.0,28573.0,0.021426]
[1680683663593,0.027,28574.0,28573.0,0.030175]
[1680683663810,0.14225199,28577.0,28573.0,0.021426]
[1680683664028,0.027,28574.0,28572.0,0.43545089]
[1680683664242,0.14225199,28577.0,28573.0,0.021733]
[1680683664683,0.16159001,28576.0,28573.0,0.021733]
[1680683665103,0.027,28574.0,28573.0,0.021733]
[1680683665533,0.20975486,28578.0,28573.0,0.021733]
[1680683665728,0.027,28576.0,28573.0,0.45943833]
[1680683665948,0.20996486,28578.0,28575.0,0.021804]
[1680683666168,0.20996486,28578.0,28573.0,0.45943833]
[1680683666393,0.20996486,28578.0,28574.0,0.021326]
[1680683666717,0.23696486,28578.0,28573.0,0.45943833]
[1680683667403,0.15303301,28578.0,28573.0,0.46818733]
[1680683667630,0.23696486,28578.0,28573.0,0.45943833]
[1680683668414,0.11114185,28578.0,28574.0,0.021483]
[1680683668631,0.027,28578.0,28573.0,0.46525323]
[1680683668842,0.19233538,28578.0,28574.0,0.021584]
[1680683669059,0.27647723,28578.0,28574.0,0.021584]
[1680683669262,0.13432041,28577.0,28573.0,0.44345423]
[1680683669476,0.13432041,28577.0,28574.0,0.021107]
[1680683669693,0.13432041,28577.0,28573.0,0.44345423]
[1680683670103,0.13432041,28577.0,28574.0,0.001]
[1680683671588,0.13432041,28577.0,28573.0,0.44345423]
[1680683671794,0.15532041,28577.0,28573.0,0.44445423]
[1680683672009,0.13432041,28577.0,28573.0,0.44345423]
[1680683672248,0.16132041,28577.0,28574.0,0.001]
[1680683672646,0.13432041,28577.0,28574.0,0.451917]
[1680683673019,0.16132041,28577.0,28574.0,0.451917]
[1680683673231,0.16153041,28577.0,28574.0,0.451917]
[1680683673862,0.13453041,28577.0,28574.0,0.451917]
[1680683674070,0.13432041,28577.0,28574.0,0.451917]
[1680683674704,0.16132041,28577.0,28574.0,0.452917]
[1680683674902,0.16153041,28577.0,28574.0,0.452917]
[1680683675932,0.0735,28575.0,28574.0,0.001]
[1680683676567,0.0735,28575.0,28573.0,0.16883779]
[1680683676783,0.1005,28575.0,28574.0,0.022787]
[1680683677008,0.1005,28575.0,28574.0,0.001]
[1680683677889,0.027,28575.0,28574.0,0.022557]
[1680683679211,0.027,28575.0,28574.0,0.39287435]
[1680683679650,0.027,28575.0,28574.0,0.031306]
[1680683679874,0.027,28575.0,28574.0,0.50182344]
[1680683680092,0.027,28575.0,28574.0,0.6275584]
[1680683680314,0.027,28575.0,28574.0,0.54371223]
[1680683680536,0.027,28575.0,28574.0,0.62757378]
[1680683680754,0.027,28575.0,28574.0,0.50183882]
[1680683681241,0.027,28575.0,28574.0,0.50195882]
[1680683682584,0.027,28575.0,28574.0,0.50183882]
[1680683683009,0.027,28575.0,28574.0,0.40922827]
[1680683683223,0.027,28575.0,28574.0,0.40934827]
[1680683683441,0.027,28575.0,28574.0,0.49320982]
[1680683683874,0.027,28575.0,28574.0,0.40922827]
[1680683684087,0.027,28575.0,28574.0,0.49308982]
[1680683684312,0.027,28575.0,28574.0,0.49239316]
[1680683684534,0.027,28575.0,28574.0,0.40824646]
[1680683690032,0.027,28575.0,28574.0,0.41699546]
[1680683692046,0.027,28575.0,28574.0,0.03032419]
[1680683692726,0.027,28575.0,28574.0,0.37821125]
[1680683694616,0.027,28575.0,28574.0,0.73292181]
[1680683696404,0.027,28575.0,28574.0,0.38503475]
[1680683696656,0.027,28575.0,28574.0,0.70714256]
[1680683697502,0.027,28575.0,28574.0,0.70720256]
[1680683697734,0.027,28575.0,28574.0,0.70714256]
[1680683701300,0.022,28575.0,28574.0,0.70714256]
[1680683702042,0.022,28575.0,28574.0,0.343683]
[1680683702941,0.022,28575.0,28574.0,0.11418574]
[1680683703183,0.022,28575.0,28574.0,0.51157318]
[1680683703407,0.022,28575.0,28574.0,0.11418574]
[1680683703852,0.022,28575.0,28574.0,0.67689413]
[1680683704292,0.022,28575.0,28574.0,0.2399207]
[1680683705157,0.022,28575.0,28574.0,0.91034749]
[1680683705876,0.022,28575.0,28574.0,0.90920609]
[1680683707214,0.022,28575.0,28574.0,0.4677549]
[1680683707440,0.022,28575.0,28574.0,0.50962831]
[1680683707666,0.022,28575.0,28574.0,1.34345162]
[1680683707904,0.022,28575.0,28574.0,1.74345162]
[1680683708133,0.022,28575.0,28574.0,1.53401335]
[1680683708422,0.01930603,28575.0,28574.0,1.53389335]
[1680683708647,0.00021,28582.0,28574.0,1.53389335]
[1680683708873,0.13922701,28582.0,28577.0,0.20945197]
[1680683709098,0.13922701,28582.0,28578.0,0.46732635]
[1680683709335,0.13922701,28582.0,28579.0,0.022211]
[1680683709565,0.13922701,28582.0,28579.0,0.030958]
[1680683709812,0.13922701,28582.0,28581.0,0.021]
[1680683710046,0.00021,28582.0,28581.0,0.021]
[1680683710293,0.16590871,28584.0,28581.0,0.021]
[1680683710515,0.16590871,28584.0,28580.0,0.45822011]
[1680683710955,0.021,28582.0,28581.0,0.021593]
[1680683711201,0.00021,28582.0,28581.0,0.020593]
[1680683712595,0.16569871,28584.0,28581.0,0.01816489]
[1680683712824,0.021,28582.0,28581.0,0.001]
[1680683713043,0.021,28582.0,28581.0,0.022582]
[1680683713479,0.021,28582.0,28581.0,0.34566523]
[1680683713693,0.16590871,28584.0,28581.0,0.34466523]
[1680683713912,0.021,28582.0,28581.0,0.32408323]
[1680683714152,0.16590871,28584.0,28581.0,0.32308323]
[1680683714373,0.00021,28585.0,28581.0,0.32308323]
[1680683714589,0.17220494,28585.0,28581.0,0.32308323]
[1680683714816,0.021,28582.0,28581.0,0.32408323]
[1680683715034,0.17241494,28585.0,28581.0,0.34266823]
[1680683715252,0.021,28584.0,28581.0,0.32408323]
[1680683715446,0.17241494,28585.0,28581.0,0.32308323]
[1680683715962,0.1240537,28584.0,28581.0,0.32308323]
[1680683716401,0.1240537,28584.0,28581.0,0.32408323]
[1680683716625,0.1240537,28584.0,28581.0,0.32308323]
[1680683717034,0.1450537,28584.0,28581.0,0.32408323]
[1680683717280,0.1240537,28584.0,28581.0,0.32308323]
[1680683717502,0.1450537,28584.0,28581.0,0.32408323]
[1680683717722,0.13100296,28583.0,28581.0,0.32308323]
[1680683717942,0.13100296,28583.0,28581.0,0.32408323]
[1680683718369,0.13100296,28583.0,28582.0,0.020994]
[1680683718613,0.13100296,28583.0,28581.0,0.32408323]
[1680683718842,0.13100296,28583.0,28582.0,0.020211]
[1680683719481,0.13100296,28583.0,28581.0,0.32408323]
[1680683719698,0.13100296,28583.0,28581.0,0.1596631]
[1680683720371,0.13100296,28583.0,28581.0,0.1586631]
[1680683721056,0.00021,28585.0,28581.0,0.1586631]
[1680683721310,0.32655711,28584.0,28581.0,0.15602641]
[1680683721528,0.32676711,28584.0,28581.0,0.15602641]
[1680683721986,0.021,28583.0,28581.0,0.15702641]
[1680683722204,0.32676711,28584.0,28581.0,0.15602641]
[1680683722432,0.34776711,28584.0,28581.0,0.15702641]
[1680683722717,0.32676711,28584.0,28581.0,0.15602641]
[1680683723240,0.31315711,28584.0,28581.0,0.15602641]
[1680683723450,0.33415711,28584.0,28581.0,0.15702641]
[1680683723663,0.31274954,28583.0,28581.0,0.15702641]
[1680683723884,0.31274954,28583.0,28581.0,0.15714641]
[1680683724317,0.31274954,28583.0,28581.0,0.16489341]
[1680683724530,0.31274954,28583.0,28581.0,0.16589341]
[1680683724751,0.31274954,28583.0,28581.0,0.15614641]
[1680683724975,0.33374954,28583.0,28581.0,0.15714641]
[1680683725190,0.31274954,28583.0,28581.0,0.00012]
[1680683725420,0.33374954,28583.0,28581.0,0.001]
[1680683725644,0.31274954,28583.0,28578.0,0.37434615]
[1680683725863,0.47564635,28583.0,28581.0,0.001]
[1680683726116,0.33374954,28583.0,28581.0,0.001]
[1680683726337,0.31274954,28583.0,28579.0,0.40697764]
[1680683726583,0.31274954,28583.0,28580.0,0.021511]
[1680683726804,0.31274954,28583.0,28580.0,0.00012]
[1680683727025,0.31274954,28583.0,28579.0,0.38693064]
[1680683727237,0.32374954,28583.0,28581.0,0.001]
[1680683727442,0.30274954,28583.0,28580.0,0.00012]
[1680683727667,0.32374954,28583.0,28580.0,0.001]
[1680683728180,0.30274954,28583.0,28579.0,0.38693064]
[1680683728401,0.32374954,28583.0,28581.0,0.001]
[1680683728641,0.30274954,28583.0,28580.0,0.00012]
[1680683728876,0.32374954,28583.0,28580.0,0.001]
[1680683729096,0.30274954,28583.0,28580.0,0.021065]
[1680683729307,0.30274954,28583.0,28580.0,0.00012]
[1680683729543,0.30274954,28583.0,28580.0,0.37863218]
[1680683729760,0.30274954,28583.0,28580.0,0.37869218]
[1680683729982,0.32374954,28583.0,28582.0,0.019903]
[1680683730207,0.30274954,28583.0,28580.0,0.37869218]
[1680683730443,0.32374954,28583.0,28580.0,0.37969218]
[1680683730884,0.30274954,28583.0,28582.0,0.019803]
[1680683731109,0.32374954,28583.0,28582.0,0.001]
[1680683731254,0.30274954,28583.0,28582.0,0.021275]
[1680683731456,0.32374954,28583.0,28582.0,0.021275]
[1680683731679,0.30274954,28583.0,28582.0,0.021275]
[1680683731880,0.32374954,28583.0,28582.0,0.022275]
[1680683732168,0.32374954,28583.0,28582.0,0.001]
[1680683733317,0.32374954,28583.0,28582.0,0.08912229]
[1680683733516,0.32374954,28583.0,28582.0,0.06938629]
[1680683734723,0.32374954,28583.0,28582.0,0.09029129]
[1680683734952,0.32374954,28583.0,28582.0,0.06938629]
[1680683736068,0.32374954,28583.0,28582.0,0.09067829]
[1680683736532,0.32374954,28583.0,28582.0,0.06938629]
[1680683737245,0.32374954,28583.0,28582.0,0.08991929]
[1680683737463,0.32374954,28583.0,28582.0,0.08994829]
[1680683737688,0.32374954,28583.0,28582.0,0.06938629]
[1680683737883,0.32374954,28583.0,28582.0,0.09020129]
[1680683738041,0.32374954,28583.0,28582.0,0.09894729]
[1680683738237,0.32374954,28583.0,28582.0,0.09020129]
[1680683738643,0.32374954,28583.0,28582.0,0.06938629]
[1680683739306,0.32374954,28583.0,28582.0,0.08905629]
[1680683739731,0.32374954,28583.0,28582.0,0.06938629]
[1680683740596,0.021,28583.0,28582.0,0.06938629]
[1680683740872,0.021,28583.0,28582.0,0.08965129]
[1680683741461,0.33854435,28583.0,28582.0,0.06938629]
[1680683741684,0.33854435,28583.0,28582.0,0.08949529]
[1680683742372,0.37944435,28583.0,28582.0,0.08949529]
[1680683743528,0.37944435,28583.0,28582.0,0.08951129]
[1680683743751,0.37944435,28583.0,28582.0,0.08995729]
[1680683744858,0.37944435,28583.0,28582.0,0.08965329]
[1680683746205,0.37944435,28583.0,28582.0,0.001]
[1680683746433,0.37944435,28583.0,28582.0,0.021707]
[1680683746877,0.37944435,28583.0,28582.0,0.001]
[1680683747124,0.37944435,28583.0,28582.0,0.022001]
[1680683747344,0.37944435,28583.0,28582.0,0.06882287]
[1680683747581,0.37944435,28583.0,28582.0,0.08970187]
[1680683748251,0.37944435,28583.0,28582.0,0.06882287]
[1680683748929,0.37944435,28583.0,28582.0,0.09025387]
[1680683749142,0.37944435,28583.0,28582.0,0.06882287]
[1680683750955,0.37944435,28583.0,28582.0,0.08997287]
[1680683751415,0.37944435,28583.0,28582.0,0.06882287]
[1680683752086,0.37944435,28583.0,28582.0,0.08747287]
[1680683753080,0.37944435,28583.0,28582.0,0.06882287]
[1680683753310,0.37944435,28583.0,28582.0,0.08931987]
[1680683753717,0.37944435,28583.0,28582.0,0.06882287]
[1680683753924,0.37944435,28583.0,28582.0,0.08938287]
[1680683754125,0.0619,28583.0,28582.0,0.08938287]
[1680683754533,0.0619,28583.0,28582.0,0.06882287]
[1680683754933,0.0619,28583.0,28582.0,0.09071887]
[1680683755715,0.0619,28583.0,28582.0,0.06882287]
[1680683756350,0.0619,28583.0,28582.0,0.09047187]
[1680683756559,0.0619,28583.0,28582.0,0.06882287]
[1680683757626,0.32891684,28583.0,28582.0,0.06882287]
[1680683758496,0.32891684,28583.0,28582.0,0.08958087]
[1680683758873,0.28801684,28583.0,28582.0,0.08958087]
[1680683759502,0.28801684,28583.0,28582.0,0.06882287]
[1680683760126,0.29481684,28583.0,28582.0,0.06882287]
[1680683760331,0.29481684,28583.0,28582.0,0.09023087]
[1680683760537,0.29481684,28583.0,28582.0,0.06882287]
[1680683762422,0.29481684,28583.0,28582.0,0.08926987]
[1680683762635,0.29491684,28583.0,28582.0,0.06882287]
[1680683764422,0.29491684,28583.0,28582.0,0.08945687]
[1680683764645,0.29491684,28583.0,28582.0,0.06882287]
[1680683765783,0.02093459,28583.0,28582.0,1.13153219]
[1680683766006,0.02093459,28583.0,28582.0,0.91167943]
[1680683766447,0.02093459,28583.0,28582.0,0.91179943]
[1680683766670,0.02093459,28583.0,28582.0,1.12137684]
[1680683766889,0.02093459,28583.0,28582.0,0.91167943]
[1680683767109,0.02354001,28588.0,28583.0,0.1]
[1680683767334,0.02354001,28588.0,28585.0,0.20951513]
[1680683767559,0.02354001,28588.0,28587.0,0.018847]
[1680683767786,0.02354001,28588.0,28587.0,0.027592]
[1680683768220,0.02454001,28588.0,28587.0,0.10711413]
[1680683768462,0.02454001,28588.0,28587.0,0.027592]
[1680683768719,0.02354001,28588.0,28587.0,0.027592]
[1680683769596,0.02354001,28588.0,28587.0,0.38230256]
[1680683770041,0.04254001,28588.0,28587.0,0.83640861]
[1680683770266,0.02354001,28588.0,28587.0,1.29172592]
[1680683770487,0.04254001,28588.0,28587.0,1.20991987]
[1680683770701,0.02354001,28588.0,28587.0,1.20791987]
[1680683770939,0.02454001,28588.0,28587.0,1.1758654]
[1680683771153,0.02354001,28588.0,28587.0,1.1758654]
[1680683771375,0.02454001,28588.0,28587.0,1.1758654]
[1680683772276,0.02454001,28588.0,28587.0,0.88661237]
[1680683773413,0.01663888,28588.0,28587.0,0.88661237]
[1680683774324,0.00904628,28588.0,28587.0,0.88661237]
[1680683774512,0.00904628,28588.0,28587.0,0.46134953]
[1680683774728,0.00904628,28588.0,28587.0,0.07904697]
[1680683774949,0.00904628,28588.0,28587.0,0.44002514]
[1680683775093,0.00148079,28588.0,28587.0,0.44002514]
[1680683775315,0.00148079,28588.0,28587.0,0.44877014]
[1680683776156,0.02354001,28589.0,28588.0,0.38512415]
[1680683776358,0.02354001,28589.0,28588.0,0.42577115]
[1680683777288,0.02354001,28589.0,28588.0,0.49355546]
[1680683777289,0.01600773,28589.0,28588.0,0.49355546]
[1680683778178,0.00850592,28589.0,28588.0,0.49355546]
[1680683778621,0.01550592,28589.0,28588.0,0.49455546]
[1680683778914,0.01550592,28589.0,28588.0,1.21756602]
[1680683779372,0.00803091,28589.0,28588.0,1.21756602]
[1680683779993,0.00803091,28589.0,28588.0,0.83177702]
[1680683780277,0.00058259,28589.0,28588.0,0.83177702]
[1680683780510,0.00058259,28589.0,28588.0,0.09194231]
[1680683780720,0.00058259,28589.0,28588.0,0.50276446]
[1680683781360,0.02354001,28590.0,28588.0,0.50276446]
[1680683781597,0.02354001,28590.0,28589.0,0.0141]
[1680683781820,0.02354001,28590.0,28589.0,0.022844]
[1680683782268,0.02354001,28590.0,28589.0,0.08960816]
[1680683782703,0.02954001,28590.0,28589.0,0.09060816]
[1680683785107,0.02954001,28590.0,28589.0,0.010587]
[1680683785357,0.02954001,28590.0,28589.0,0.08477288]
[1680683785582,0.38283546,28590.0,28589.0,0.08477288]
[1680683785824,0.02954001,28590.0,28589.0,0.07418588]
[1680683786052,0.39544755,28590.0,28589.0,0.08448188]
[1680683786272,0.39565755,28590.0,28589.0,0.08499588]
[1680683786486,0.39565755,28590.0,28589.0,0.07418588]
[1680683787275,0.39565755,28590.0,28589.0,0.08524988]
[1680683787709,0.39565755,28590.0,28589.0,0.08447988]
[1680683788113,0.39565755,28590.0,28589.0,0.07418588]
[1680683789371,0.38965755,28590.0,28589.0,0.07418588]
[1680683789586,0.41365755,28590.0,28589.0,0.07518588]
[1680683789804,0.38965755,28590.0,28589.0,0.07418588]
[1680683790215,0.41365755,28590.0,28589.0,0.07518588]
[1680683794625,0.41365755,28590.0,28589.0,0.08580788]
[1680683794851,0.41365755,28590.0,28589.0,0.07518588]
[1680683795294,0.41365755,28590.0,28589.0,0.08607188]
[1680683795528,0.41365755,28590.0,28589.0,0.07518588]
[1680683795761,0.41365755,28590.0,28589.0,0.08611088]
[1680683796195,0.41365755,28590.0,28589.0,0.07518588]
[1680683796888,0.41365755,28590.0,28589.0,0.08612988]
[1680683798251,0.41365755,28590.0,28589.0,0.07518588]
[1680683802239,0.40246057,28590.0,28589.0,0.07518588]
[1680683802464,0.45992557,28590.0,28589.0,0.07518588]
[1680683803389,0.45992557,28590.0,28589.0,0.001]
[1680683804770,0.45992557,28590.0,28582.0,4.34670385]
[1680683804771,0.3693,28589.0,28584.0,0.00018]
[1680683804999,0.3693,28589.0,28582.0,0.00099477]
[1680683805000,0.0004,28583.0,28582.0,0.00099477]
[1680683805240,0.49700737,28583.0,28582.0,0.00099477]
[1680683805472,0.50550737,28583.0,28580.0,0.00018]
[1680683805701,0.35471056,28582.0,28580.0,0.00018]
[1680683805937,0.35471056,28582.0,28580.0,0.00012]
[1680683805938,0.0085,28581.0,28580.0,0.00012]
[1680683806163,0.36321056,28581.0,28579.0,0.00018]
[1680683806388,0.35471056,28580.0,28579.0,0.00018]
[1680683806832,0.36321056,28580.0,28579.0,0.00018]
[1680683807288,0.65418067,28580.0,28579.0,0.00018]
[1680683807509,0.68118067,28580.0,28579.0,0.00018]
[1680683807702,0.65418067,28580.0,28579.0,0.00018]
[1680683807942,0.68118067,28580.0,28579.0,0.00018]
[1680683810022,0.68118067,28580.0,28577.0,0.02897934]
[1680683810023,0.68118067,28580.0,28578.0,0.00018]
[1680683810221,0.1,28579.0,28578.0,0.00012]
[1680683810476,0.1085,28579.0,28578.0,0.00018]
[1680683810921,0.1085,28579.0,28577.0,0.028163]
[1680683811222,0.46321056,28579.0,28577.0,0.028103]
[1680683811258,0.39021056,28579.0,28577.0,0.028103]
[1680683811648,0.36321056,28579.0,28577.0,0.028163]
[1680683811865,0.39021056,28579.0,28577.0,0.028163]
[1680683812511,0.39021056,28579.0,28577.0,0.027983]
[1680683812966,0.29811079,28578.0,28577.0,0.027983]
[1680683813171,0.29811079,28578.0,28577.0,0.028163]
[1680683813588,0.29811079,28578.0,28577.0,0.027983]
[1680683813804,0.29811079,28578.0,28577.0,0.028163]
[1680683814009,0.32511079,28578.0,28577.0,0.028163]
[1680683815068,0.32511079,28578.0,28577.0,0.028103]
[1680683815486,0.32511079,28578.0,28577.0,0.00012]
[1680683815697,0.32511079,28578.0,28576.0,0.00018]
[1680683816572,0.29811079,28578.0,28576.0,0.00018]
[1680683817043,0.32511079,28578.0,28576.0,0.00018]
[1680683817281,0.32511079,28578.0,28577.0,0.06118746]
[1680683817535,0.32511079,28578.0,28577.0,0.06136746]
[1680683818394,0.29811079,28578.0,28577.0,0.06136746]
[1680683818878,0.66132135,28578.0,28577.0,0.06136746]
[1680683819902,0.68832135,28578.0,28577.0,0.06136746]
[1680683820150,0.66132135,28578.0,28577.0,0.06136746]
[1680683820367,0.68832135,28578.0,28577.0,0.06136746]
[1680683820603,0.66132135,28578.0,28577.0,0.06136746]
[1680683820827,0.68832135,28578.0,28577.0,0.05118746]
[1680683821254,0.68832135,28578.0,28574.0,0.39035113]
[1680683822353,0.68832135,28578.0,28575.0,0.06085128]
[1680683822823,0.37221459,28577.0,28575.0,0.06085128]
[1680683823045,0.37221459,28577.0,28575.0,0.05085128]
[1680683823284,0.37242459,28577.0,28575.0,0.05085128]
[1680683823705,0.39942459,28577.0,28575.0,0.05085128]
[1680683824587,0.39921459,28577.0,28575.0,0.05085128]
[1680683824796,0.39942459,28577.0,28575.0,0.05085128]
[1680683825231,0.39942459,28577.0,28573.0,0.43353392]
[1680683825520,0.28056034,28576.0,28574.0,0.010494]
[1680683825742,0.28056034,28576.0,28575.0,0.009077]
[1680683826404,0.28056034,28576.0,28575.0,0.06362039]
[1680683826857,0.30756034,28576.0,28575.0,0.06362039]
[1680683827312,0.30756034,28576.0,28573.0,0.00012]
[1680683827537,0.30756034,28576.0,28572.0,0.27666144]
[1680683827987,0.27367031,28575.0,28572.0,0.27666144]
[1680683828206,0.27367031,28575.0,28574.0,0.010784]
[1680683828440,0.02721,28576.0,28575.0,0.3683]
[1680683828663,0.027,28576.0,28575.0,0.017536]
[1680683828890,0.18538114,28581.0,28575.0,0.017536]
[1680683829111,0.18538114,28581.0,28576.0,0.010782]
[1680683829331,0.18538114,28581.0,28577.0,0.008748]
[1680683829556,0.15022426,28580.0,28578.0,0.008786]
[1680683829770,0.15022426,28580.0,28579.0,0.010497]
[1680683830445,0.1441629,28577.0,28575.0,0.0095]
[1680683830640,0.13259681,28577.0,28576.0,0.010329]
[1680683830853,6e-05,28581.0,28576.0,0.010329]
[1680683830854,0.00021,28581.0,28576.0,0.015829]
[1680683831075,0.17049775,28580.0,28576.0,0.44549818]
[1680683831300,0.14701215,28579.0,28576.0,0.44549818]
[1680683832235,0.15801215,28579.0,28577.0,0.06330077]
[1680683832686,0.011,28579.0,28577.0,0.06330077]
[1680683833129,0.35492056,28581.0,28578.0,0.45583366]